Cogmind - Beta 16 @@@ ROGUE MODE // 2025.11.13 @ 08:38:50 Player: shapeshifter Result: Self-destructed Performance ------------- Evolutions (6) 3000 Regions Visited (8) 1600 Robots Destroyed (0) 0 Value Destroyed (0) 0 Prototype IDs (2) 40 Alien Tech Used (0) 0 Bonus (2880) 2880 TOTAL SCORE: 7520 Bonus ------- Pacifist 2880 Cogmind --------- Core Integrity 1130/1150 Matter 156/300 Energy 170/170 System Corruption 2% Temperature Warm (115) Movement Flying (28) Location -4/Extension Parts ------- > --- POWER (2) -------- Light Antimatter Reactor > --- PROPULSION (8) --- VTOL Module VTOL Module Xenon Bombardment Thruster Impulse Thruster > --- UTILITY (7) ------ Disposable Heat Sink Reaction Control System Improved Utility Shielding System Shield > --- WEAPON (2) ------- (None) > --- INVENTORY (5) ---- Ion Engine Advanced Weight Redist. System Rocket Launcher Improved Plasma Cutter Peak State ------------ > --- POWER ------------ Ion Engine Light Antimatter Reactor > --- PROPULSION ------- VTOL Module VTOL Module VTOL Module Cesium-ion Thruster Xenon Bombardment Thruster Nuclear Pulse Thruster Impulse Thruster > --- UTILITY ---------- Disposable Heat Sink Reaction Control System Improved Utility Shielding System Shield > --- WEAPON ----------- (None) > --- INVENTORY -------- Ion Engine Advanced Weight Redist. System Rocket Launcher Improved Plasma Cutter [Rating: 45] Favorites ----------- Power Ion Engine Engine Ion Engine Reactor Light Antimatter Reactor Propulsion VTOL Module Flight Unit VTOL Module Utility Disposable Heat Sink Device Disposable Heat Sink Hackware System Shield Protection Improved Utility Shielding Weapon None Build | -11 -10 -9 -8 -7 -6 -5 -4 -4 ------- Run | Yrd Mat Mat Mat Fac Fac Fac Fac Ext Slots Evolved 12 | . . 2 2 2 2 2 2 . Power 1 | . . . . 1 . . . . Propulsion 6 | . . 2 1 1 . 1 1 . Utility 5 | . . . 1 . 2 1 1 . Weapon . | . . . . . . . . . Parts Attached 15 | . 3 2 2 1 2 3 2 . Power 3 | . 1 . . 1 . . 1 . Engine 2 | . 1 . . 1 . . . . Core . | . . . . . . . . . Reactor 1 | . . . . . . . 1 . Propulsion 8 | . 2 2 1 . 1 1 1 . Treads . | . . . . . . . . . Leg . | . . . . . . . . . Wheel . | . . . . . . . . . Hover . | . . . . . . . . . Flight 8 | . 2 2 1 . 1 1 1 . Utility 4 | . . . 1 . 1 2 . . Device 2 | . . . 1 . . 1 . . Storage . | . . . . . . . . . Processor . | . . . . . . . . . Hackware 1 | . . . . . 1 . . . Protection 1 | . . . . . . 1 . . Artifact . | . . . . . . . . . Weapon . | . . . . . . . . . Energy Gun . | . . . . . . . . . Energy Cannon . | . . . . . . . . . Ballistic Gun . | . . . . . . . . . Ballistic Cannon . | . . . . . . . . . Launcher . | . . . . . . . . . Special Weapon . | . . . . . . . . . Impact Weapon . | . . . . . . . . . Slashing Weapon . | . . . . . . . . . Piercing Weapon . | . . . . . . . . . Special Melee Weapon . | . . . . . . . . . Unidentified Prototypes . | . . . . . . . . . Parts Lost 5 | . . . . . . 1 1 3 Power 1 | . . . . . . . . 1 Propulsion 4 | . . . . . . 1 1 2 Utility . | . . . . . . . . . Weapon . | . . . . . . . . . Highest Loss Streak 4 | . . . . . . 1 1 4 To Critical Strikes . | . . . . . . . . . Average Backups 2 | 1 2 1 1 2 3 2 3 4 Power . | 1 1 1 1 . . . . 1 Propulsion . | . 1 . . . . . . . Utility 1 | . . . . 1 2 1 1 1 Weapon . | . . . . 1 1 1 1 1 Tool/Special . | . . . . . . . . . Unused Backups 3 | . . . . . . . . 3 Power . | . . . . . . . . . Propulsion . | . . . . . . . . . Utility 1 | . . . . . . . . 1 Weapon 1 | . . . . . . . . 1 Tool/Special 1 | . . . . . . . . 1 Average Slot Usage (%) 54 | . 24 51 49 61 60 69 63 63 Engine 10 | . 8 11 9 15 13 11 7 5 Flight 33 | . 16 40 39 38 37 37 31 31 Device 5 | . . . 1 7 6 9 10 10 Hackware 1 | . . . . . 2 5 5 5 Protection 1 | . . . . . . 4 5 5 Peak Build Rating 45 | . 5 9 14 15 23 32 45 43 Average Rating 18 | . 3 8 9 15 20 31 37 41 On Entrance 15 | . . 5 9 14 15 23 32 43 Avg Prop Armor Cover (%) . | . . . . . . . . . Naked Turns 16 | . 16 . . . . . . . Heaviest Build 21 | . 5 5 6 11 11 14 21 21 Greatest Support 36 | 3 8 16 21 21 27 33 36 32 Greatest Overweight (x) . | . . . . . . . . . Average Overweight (x) . | . . . . . . . . . Largest Inventory Capacity 5 | 5 5 5 5 5 5 5 5 5 Average Capacity 5 | 5 5 5 5 5 5 5 5 5 Most Carried 5 | 2 5 2 4 3 5 4 5 4 Average Carried 2 | 1 2 1 2 2 3 2 3 4 Final Capacity 5 | 5 5 5 5 5 5 5 5 5 Final Carried 4 | 2 3 1 3 3 4 3 4 4 Class Distribution -------------------- 95% | Sprinter 4% | Mutant Dominant Class ---------------- Sprinter | -10/Materials Sprinter | -9/Materials Sprinter | -8/Materials Sprinter | -7/Factory Sprinter | -6/Factory Sprinter | -5/Factory Sprinter | -4/Factory Sprinter | -4/Extension Resources | -11 -10 -9 -8 -7 -6 -5 -4 -4 ----------- Run | Yrd Mat Mat Mat Fac Fac Fac Fac Ext Matter Collected 178 | 178 . . . . . . . . Remotely . | . . . . . . . . . Salvage Created . | . . . . . . . . . Parts . | . . . . . . . . . Haulers Intercepted . | . . . . . . . . . Recyclers Shooed . | . . . . . . . . . Parts Field Recycled . | . . . . . . . . . Retrieved Matter . | . . . . . . . . . Parts Self-Destructed . | . . . . . . . . . Prevented . | . . . . . . . . . Parts Restored . | . . . . . . . . . Kills | -11 -10 -9 -8 -7 -6 -5 -4 -4 ------- Run | Yrd Mat Mat Mat Fac Fac Fac Fac Ext Combat Hostiles Destroyed . | . . . . . . . . . Classes Destroyed . | . . . . . . . . . Best Kill Streak . | . . . . . . . . . Combat Bots Only . | . . . . . . . . . Max Kills in Single Turn . | . . . . . . . . . Gunslinging . | . . . . . . . . . Exploded . | . . . . . . . . . Melee . | . . . . . . . . . Uniques/NPCs Destroyed . | . . . . . . . . . Combat | -11 -10 -9 -8 -7 -6 -5 -4 -4 -------- Run | Yrd Mat Mat Mat Fac Fac Fac Fac Ext Hostile Shots Fired 37 | . . . . 10 1 11 6 9 Missed 19 | . . . . 6 . 6 3 4 Hits 18 | . . . . 4 1 5 3 5 Projectile 18 | . . . . 4 1 5 3 5 Damage Taken 419 | . . . . 61 20 138 55 145 Core 59 | . . . . . . 39 . 20 Absorbed by Shields . | . . . . . . . . . Redirected to Shielding 16 | . . . . . . 16 . . Core Remaining (%) 99 | 100 100 100 100 100 100 96 . . Volleys Fired . | . . . . . . . . . Largest . | . . . . . . . . . Hottest . | . . . . . . . . . Shots Fired . | . . . . . . . . . Gun . | . . . . . . . . . Cannon . | . . . . . . . . . Launcher . | . . . . . . . . . Special . | . . . . . . . . . Kinetic . | . . . . . . . . . Thermal . | . . . . . . . . . Explosive . | . . . . . . . . . Electromagnetic . | . . . . . . . . . Robot Hit Streak . | . . . . . . . . . Robot Miss Streak . | . . . . . . . . . Penetration Max . | . . . . . . . . . Secondary Targets . | . . . . . . . . . Shots Hit Robots . | . . . . . . . . . Core Hits . | . . . . . . . . . Critical Kills . | . . . . . . . . . Critical Parts Destroyed . | . . . . . . . . . Critical Strikes . | . . . . . . . . . Melee Attacks . | . . . . . . . . . Impact . | . . . . . . . . . Slashing . | . . . . . . . . . Piercing . | . . . . . . . . . Sneak Attacks . | . . . . . . . . . Combat Hostiles . | . . . . . . . . . Follow-up Attacks . | . . . . . . . . . Damage Inflicted 6 | . . . . . . . 6 . Guns . | . . . . . . . . . Cannons . | . . . . . . . . . Explosions . | . . . . . . . . . Melee . | . . . . . . . . . Ramming 6 | . . . . . . . 6 . Kinetic . | . . . . . . . . . Thermal . | . . . . . . . . . Explosive . | . . . . . . . . . Electromagnetic . | . . . . . . . . . Impact . | . . . . . . . . . Slashing . | . . . . . . . . . Piercing . | . . . . . . . . . Highest Corruption 2 | . . . . . . 1 . 2 Average Corruption 1 | . . . . . . 1 . 2 Corruption Purged . | . . . . . . . . . Corruption Blocked . | . . . . . . . . . Overload Shots . | . . . . . . . . . Overflow Damage . | . . . . . . . . . Projectiles . | . . . . . . . . . Explosions . | . . . . . . . . . Melee . | . . . . . . . . . Knockbacks . | . . . . . . . . . Impact . | . . . . . . . . . Kinetic . | . . . . . . . . . Secondary . | . . . . . . . . . Self-Inflicted Damage 3 | . . . . . . . 3 . Shots . | . . . . . . . . . Rammed 1 | . . . . . . . 1 . Targets Rammed 1 | . . . . . . . 1 . Kicked . | . . . . . . . . . Crushed . | . . . . . . . . . Highest Temperature 198 | . . 1 11 198 194 195 140 127 Average Temperature 108 | . . 1 6 94 136 152 52 71 Received Heat Transfer 90 | . . . . 18 9 27 18 18 Siege Activations . | . . . . . . . . . Martial Activations . | . . . . . . . . . Shielding Activations . | . . . . . . . . . Robots Disrupted . | . . . . . . . . . Combat Hostiles . | . . . . . . . . . Robots Corrupted . | . . . . . . . . . Combat Hostiles . | . . . . . . . . . Parts Fried . | . . . . . . . . . Impact Corruptions . | . . . . . . . . . Robots Melted . | . . . . . . . . . Combat Hostiles . | . . . . . . . . . Parts Melted . | . . . . . . . . . Heat Transferred . | . . . . . . . . . Parts Sabotaged . | . . . . . . . . . Parts Stolen . | . . . . . . . . . Parts Stripped . | . . . . . . . . . Power Chain Reactions . | . . . . . . . . . Alert | -11 -10 -9 -8 -7 -6 -5 -4 -4 ------- Run | Yrd Mat Mat Mat Fac Fac Fac Fac Ext Maximum Alert Level . | . . . . . . . . . Low Security (%) 100 | 100 100 100 100 100 100 100 100 100 Level 1 . | . . . . . . . . . Level 2 . | . . . . . . . . . Level 3 . | . . . . . . . . . Level 4 . | . . . . . . . . . Level 5 . | . . . . . . . . . High Security . | . . . . . . . . . Max Security . | . . . . . . . . . Peak Influence 50 | . 5 7 13 50 19 8 3 . Initial 19 | . . . . . 19 . 3 . Average 6 | . . 3 7 14 10 1 1 . Influence Increases 128 | . 5 7 23 69 16 8 . . Successful Hack 68 | . 5 7 23 9 16 8 . . Lose Combat Pursuer 60 | . . . . 60 . . . . Influence Decreases 128 | . 5 7 20 32 56 . 8 . Entered New Map 29 | . . . . 3 21 . 5 . Time Decay 99 | . 5 7 20 29 35 . 3 . Squads Dispatched 8 | . . . 1 2 2 1 1 1 Investigation 5 | . . . . 1 2 . 1 1 Extermination . | . . . . . . . . . Reinforcement 3 | . . . 1 1 . 1 . . Assault . | . . . . . . . . . Garrison . | . . . . . . . . . Intercept . | . . . . . . . . . Searches Triggered . | . . . . . . . . . Construction Impeded . | . . . . . . . . . Haulers Reinforced . | . . . . . . . . . Active Scanning Responses . | . . . . . . . . . Cargo Convoy Interrupts . | . . . . . . . . . Stealth | -11 -10 -9 -8 -7 -6 -5 -4 -4 --------- Run | Yrd Mat Mat Mat Fac Fac Fac Fac Ext Distress Signals 2 | . . . . . 1 1 . . Communications Jammed . | . . . . . . . . . Distress Signals . | . . . . . . . . . Times Spotted 36 | . 1 1 3 10 9 3 5 4 Peak Tracking Total 8 | . 2 1 2 6 8 4 4 4 Tactical Retreats 1 | . . . . 1 . . . . Traps | -11 -10 -9 -8 -7 -6 -5 -4 -4 ------- Run | Yrd Mat Mat Mat Fac Fac Fac Fac Ext Traps Triggered 1 | . . . . . . 1 . . Indirectly . | . . . . . . . . . Trap Hack Attempts . | . . . . . . . . . Triggered . | . . . . . . . . . Disarmed . | . . . . . . . . . Reprogrammed . | . . . . . . . . . Reused . | . . . . . . . . . Traps Extracted . | . . . . . . . . . Installed . | . . . . . . . . . Triggered . | . . . . . . . . . Machines | -11 -10 -9 -8 -7 -6 -5 -4 -4 ---------- Run | Yrd Mat Mat Mat Fac Fac Fac Fac Ext Machines Disabled . | . . . . . . . . . Max in Single Turn . | . . . . . . . . . Machines Repaired . | . . . . . . . . . Machines Dismantled . | . . . . . . . . . Machines Sabotaged . | . . . . . . . . . Overloaded Fab Kills . | . . . . . . . . . Hacking | -11 -10 -9 -8 -7 -6 -5 -4 -4 --------- Run | Yrd Mat Mat Mat Fac Fac Fac Fac Ext Machines Accessed 20 | . 2 3 3 2 7 1 1 1 Terminals 15 | . 1 3 3 1 4 1 1 1 Fabricators . | . . . . . . . . . Repair Stations . | . . . . . . . . . Recycling Units 5 | . 1 . . 1 3 . . . Scanalyzers . | . . . . . . . . . Garrison Access . | . . . . . . . . . Total Hacks 60 | . 7 5 8 7 23 2 5 3 Successful 20 | . 3 2 5 4 5 1 . . Failed 40 | . 4 3 3 3 18 1 5 3 Catastrophic 15 | . 2 3 1 1 5 . 1 2 Database Lockouts . | . . . . . . . . . Manual 25 | . 3 3 4 4 6 1 4 . Terminals 46 | . 4 5 8 6 13 2 5 3 Fabricators . | . . . . . . . . . Repair Stations . | . . . . . . . . . Recycling Units 14 | . 3 . . 1 10 . . . Scanalyzers . | . . . . . . . . . Garrison Access . | . . . . . . . . . Terminal Hacks 12 | . 1 2 4 2 2 1 . . Prototype ID Bank 1 | . . . 1 . . . . . Open DSF 1 | . . . . . 1 . . . Level Access Points 1 | . . . . 1 . . . . Branch Access Points 2 | . . 1 . . . 1 . . Registered Components 2 | . . . 1 . 1 . . . Zone Layout 5 | . 1 1 2 1 . . . . Fabricator Hacks . | . . . . . . . . . Repair Station Hacks . | . . . . . . . . . Recycling Unit Hacks 4 | . 1 . . 1 2 . . . Retrieve Matter 1 | . . . . . 1 . . . Retrieve Components 3 | . 1 . . 1 1 . . . Scanalyzer . | . . . . . . . . . Garrison Access Hacks . | . . . . . . . . . Unauthorized Hacks 4 | . 1 . 1 1 1 . . . Terminals 4 | . 1 . 1 1 1 . . . Botnet 4 | . 1 . 1 1 1 . . . Fabricators . | . . . . . . . . . Repair Stations . | . . . . . . . . . Recycling Units . | . . . . . . . . . Scanalyzers . | . . . . . . . . . Garrison Access . | . . . . . . . . . Data Cores Recovered . | . . . . . . . . . Used . | . . . . . . . . . Hacking Detections 19 | . 2 3 3 2 7 . 1 1 Full Trace Events 6 | . 1 . . 1 2 . 1 1 Feedback Events . | . . . . . . . . . Feedback Blocked . | . . . . . . . . . Robot Schematics Acquired . | . . . . . . . . . Robots Built . | . . . . . . . . . Authchips . | . . . . . . . . . Time . | . . . . . . . . . Total Robot Build Rating . | . . . . . . . . . Part Schematics Acquired . | . . . . . . . . . Parts Built . | . . . . . . . . . Authchips . | . . . . . . . . . Time . | . . . . . . . . . Total Part Build Rating . | . . . . . . . . . Part Studies Acquired . | . . . . . . . . . Parts Repaired . | . . . . . . . . . Time . | . . . . . . . . . Parts Recycled . | . . . . . . . . . Recycled Matter . | . . . . . . . . . Retrieved Matter . | . . . . . . . . . Retrieved Components 6 | . 3 . . 3 . . . . Parts Scanalyzed . | . . . . . . . . . Part Schematics Acquired . | . . . . . . . . . Parts Damaged . | . . . . . . . . . Bothacking | -11 -10 -9 -8 -7 -6 -5 -4 -4 ------------ Run | Yrd Mat Mat Mat Fac Fac Fac Fac Ext Used RIF Installer . | . . . . . . . . . Robots Hacked . | . . . . . . . . . Non-combat . | . . . . . . . . . Combat . | . . . . . . . . . Robot Hacks Applied . | . . . . . . . . . Relay Couplers Released . | . . . . . . . . . Fabnet Peak Effective % . | . . . . . . . . . Robots Rewired . | . . . . . . . . . Allies Hacked . | . . . . . . . . . Hacks Repelled . | . . . . . . . . . Allies | -11 -10 -9 -8 -7 -6 -5 -4 -4 -------- Run | Yrd Mat Mat Mat Fac Fac Fac Fac Ext Total Allies . | . . . . . . . . . Largest Group . | . . . . . . . . . Highest-Rated Group . | . . . . . . . . . Highest-Rated Ally . | . . . . . . . . . Total Orders . | . . . . . . . . . Ally Attacks . | . . . . . . . . . Total Damage . | . . . . . . . . . Kills . | . . . . . . . . . Allies Corrupted . | . . . . . . . . . Allies Melted . | . . . . . . . . . Intel | -11 -10 -9 -8 -7 -6 -5 -4 -4 ------- Run | Yrd Mat Mat Mat Fac Fac Fac Fac Ext Active Infowar (turns) . | . . . . . . . . . Robot Analysis Total . | . . . . . . . . . Derelict Logs Recovered . | . . . . . . . . . Drone Launches . | . . . . . . . . . Drone Recoveries . | . . . . . . . . . Exploration | -11 -10 -9 -8 -7 -6 -5 -4 -4 ------------- Run | Yrd Mat Mat Mat Fac Fac Fac Fac Ext Turns Passed 416 | 14 55 20 51 86 84 54 31 21 Spaces Moved 1595 | 23 133 67 179 362 384 234 123 90 Core 47 | 23 24 . . . . . . . Treads . | . . . . . . . . . Legs . | . . . . . . . . . Wheels . | . . . . . . . . . Hover . | . . . . . . . . . Flight 1548 | . 109 67 179 362 384 234 123 90 Fastest Speed 18 | 50 32 26 23 23 20 18 19 22 Average Speed 23 | 50 35 26 25 23 20 20 20 22 Slowest Speed 50 | 50 50 26 26 23 23 21 22 28 Overloaded Moves . | . . . . . . . . . Propulsion Burnouts . | . . . . . . . . . Robots Hopped 21 | . . 3 3 2 9 1 3 . Potential Cave-ins . | . . . . . . . . . Cave-ins Triggered . | . . . . . . . . . Exploration Rate (%) 16 | 4 34 11 26 14 19 8 5 25 Regions Visited 8 Branch Regions 1 Pre-discovered Areas . | . . . . . . . . . Known Exits Taken 1 | . . . . 1 . . . . Unknown Exits Taken 7 | 1 1 1 1 . 1 1 1 . Scrap Searched . | . . . . . . . . . Spaces Dug . | . . . . . . . . . Terrain Destroyed . | . . . . . . . . . Melee . | . . . . . . . . . Projectile . | . . . . . . . . . AOE . | . . . . . . . . . Terrain Rammed . | . . . . . . . . . Walls Destroyed . | . . . . . . . . . Machines Disabled . | . . . . . . . . . Actions | -11 -10 -9 -8 -7 -6 -5 -4 -4 --------- Run | Yrd Mat Mat Mat Fac Fac Fac Fac Ext Total 1601 | 24 139 65 181 361 379 238 124 90 Wait 2 | . 1 . . . . 1 . . Move 1550 | 22 132 61 174 357 366 231 117 90 Hop 17 | . . 2 1 2 8 1 3 . Pick Up 17 | 2 3 . 4 1 3 2 2 . Fast Attach 1 | . 1 . . . . . . . Attach 13 | . 2 2 2 1 2 3 1 . Detach . | . . . . . . . . . Swap 1 | . . . . . . . 1 . Drop . | . . . . . . . . . Fire . | . . . . . . . . . Melee . | . . . . . . . . . Ram . | . . . . . . . . . Kick . | . . . . . . . . . Crush . | . . . . . . . . . Escape Stasis . | . . . . . . . . . Rewire . | . . . . . . . . . Trap . | . . . . . . . . . Miscellaneous . | . . . . . . . . . Route ------- -11/Scrapyard -10/Materials (discovered 2 exits: *Mat / [*Min]) -9/Materials (discovered 2 exits: *Mat / Min) -8/Materials -7/Factory (discovered 4 exits: *Fac x4) -6/Factory -5/Factory (discovered 3 exits: *Fac / Upp x2) -4/Factory -4/Extension History --------- Turn | Location | Event 2 | -11/Scrapyard | Met Revision 17 5 | -11/Scrapyard | Discovered new exit (range 16) 15 | -11/Scrapyard | Entered Materials 53 | -10/Materials | Discovered new exit (range 12) 63 | -10/Materials | Discovered new exit (range 15) 70 | -10/Materials | Entered another Materials area 70 | -9/Materials | Evolved 2 slots: Propulsion x2 80 | -9/Materials | Identified exit to Mines 89 | -9/Materials | Discovered new exit (range 3) 90 | -9/Materials | Entered another Materials area 90 | -8/Materials | Evolved 2 slots: Propulsion x1, Utility x1 133 | -8/Materials | Discovered new exit (range 10) 141 | -8/Materials | Entered Factory 141 | -7/Factory | Evolved 2 slots: Power x1, Propulsion x1 166 | -7/Factory | Identified exit to Factory 227 | -7/Factory | Entered another Factory area 227 | -6/Factory | Evolved 2 slots: Utility x2 306 | -6/Factory | Discovered new exit (range 15) 311 | -6/Factory | Entered another Factory area 311 | -5/Factory | Evolved 2 slots: Propulsion x1, Utility x1 321 | -5/Factory | Discovered new exit (range 15) 349 | -5/Factory | Build established: Sprinter 354 | -5/Factory | Identified exit to Upper Caves 365 | -5/Factory | Entered another Factory area 365 | -4/Factory | Evolved 2 slots: Propulsion x1, Utility x1 380 | -4/Factory | Spotted B-86 Titan 394 | -4/Factory | Discovered new exit (range 7) 396 | -4/Factory | Entered Extension 413 | -4/Extension | Spotted B-86 Titan 414 | -4/Extension | Spotted B-86 Titan 417 | -4/Extension | Self-destructed Last Messages --------------- 00388_ Connecting with Terminal... 00388_ Current location identified: Factory 00388_ Connecting with Terminal... 00388_ ALERT: Suspicious activity at Terminal F020. Dispatching Investigation squad. 00389_ Acquired Impulse Thruster. 00394_ EXIT=FOUND 00394_ VTOL Module destroyed. 00396_ Slammed into G-67 Veteran. 00396_ Destabilizing: System corrupted (+2). LOCATION=UNKNOWN GOAL=ESCAPE 00414_ Ion Engine destroyed. 00414_ Nuclear Pulse Thruster destroyed. 00415_ Cesium-ion Thruster destroyed. 00416_ Penetrated by Slug. 00417_ Connecting with Door Terminal... 00417_ Current location identified: Extension 00417_ ALERT: Suspicious activity at Terminal E001. Dispatching Investigation squad. Map ----- +----------------------------------------------------+ | ?????????????????????????????????????????????????? | | ?????????????????????????????????????????????????? | | ?????????????????????????????????????????????????? | | ?????????????????????????????????????????????????? | | ?????????????????????????????????????????????????? | | ?????????????????????????????????????????????????? | | ?????????????????????????????????????????????????? | | ??????????????????????? #????????????????????????? | | ??????????????????????? #????????????????????????? | | ??????????????????????? #??##?##?????????????????? | | ????????????????????### ###Y## ##????????????????? | | ????????????????????#"" "" ""???????????????? | | ????????????????????# " " " ??????????????? | | ????????????????????# ?????????????? | | ????????????????????# ????????????? | | ##################### ????????????? | | ???????????? | | ???????????? | | ??????????? | | ??????????? | | R R ??????????? | | ##################### BB BB #???????????? | | ????????????????????# BB BB #???????????? | | ???????????????????## #???????????? | | ???????????????????#; #???????????? | | ???????????????????## @ #???????????? | | ????????????????????#;##;#T#"""#######???????????? | | ????????????????????#??##?##?????????????????????? | | ?????????????????????????????????????????????????? | | | | | | | | | | | | | | | | | | | | | | | | | | | | | | | | | | | | | | | | | | | +----------------------------------------------------+ Best States ------------- Heat Dissipation 43 Coolant Potential 50 Energy Generation 26 Energy Capacity 400 Matter Stores 278 Matter Capacity 300 Sight Range 16 Terrain Scan Density 10 Utility Shielding 66 Evasion (%) 72 Defensive Hacking 10 Item Schematics ----------------- None Robot Schematics ------------------ None Fabricated ------------ Nothing Repaired ---------- Nothing Studied --------- None Alien Tech Used ----------------- None Achievements -------------- None Challenges ------------ None Game ------ Seed DeuteriumConstructModule Manual? 0 Play Time 00:11:31 Cumulative 496.5 hours Start 2025.11.13 @ 08:27:23 End 2025.11.13 @ 08:38:50 Sessions 1 Manual Loads 0 Difficulty Rogue Special Mode None Game No. 668 Rogue 668 Adventurer 0 Explorer 0 Win Type - Total 15 Types 7/0/2/2/1/0/2/1/0/0 Lore% 91 Gallery% 85 Achievement% 66 Wizard Run 0 Options --------- Layout 0 ASCII 0 Keyboard 0 Movement Mouse Keybinds 0 Fullscreen 1 Font 24/Terminus Map View 76x50 Zoom Use 0% Tactical HUD 1 Map Filters NONE Filters NONE Steam 1 RUN: 8af7f985-334c-4f5a-a81e-098f41529c28